[Event "*** Titled Tuesday 3|2 Blitz"]
[Site "Chess.com"]
[Date "2016.02.02"]
[Round "4"]
[White "HansCoolNiemann"]
[Black "jcibarra"]
[Result "0-1"]
[WhiteElo "2202"]
[BlackElo "2496"]
[TimeControl "180+2"]
[EndTime "17:46:37 PST"]
[Termination "jcibarra won by checkmate"]

1. d4 {[%clk 0:03:01.9]} 1... Nf6 {[%clk 0:03:00.2]} 2. c4 {[%clk 0:03:02.6]}
2... d6 {[%clk 0:03:01.4]} 3. Nf3 {[%clk 0:03:01.3]} 3... g6 {[%clk 0:03:01.1]}
4. Nc3 {[%clk 0:03:00.9]} 4... Bf5 {[%clk 0:03:02.4]} 5. Nh4 {[%clk 0:02:51.1]}
5... Bd7 {[%clk 0:03:02.9]} 6. Nf3 {[%clk 0:02:51.1]} 6... Bf5 {[%clk 0:03:03]}
7. Nh4 {[%clk 0:02:51]} 7... Bg4 {[%clk 0:03:03.8]} 8. h3 {[%clk 0:02:50]} 8...
Bd7 {[%clk 0:03:04.7]} 9. Nf3 {[%clk 0:02:49.6]} 9... Bf5 {[%clk 0:03:05]} 10.
Nh4 {[%clk 0:02:48.4]} 10... Bc8 {[%clk 0:03:00.4]} 11. e4 {[%clk 0:02:47.9]}
11... Bg7 {[%clk 0:02:59.2]} 12. Nf3 {[%clk 0:02:48.3]} 12... O-O {[%clk
0:03:00]} 13. Be2 {[%clk 0:02:48.7]} 13... e5 {[%clk 0:02:58.5]} 14. dxe5 {[%clk
0:02:47.7]} 14... dxe5 {[%clk 0:02:59.4]} 15. Qxd8 {[%clk 0:02:49.6]} 15... Rxd8
{[%clk 0:03:00.8]} 16. Bg5 {[%clk 0:02:51.5]} 16... Na6 {[%clk 0:02:59.5]} 17.
Nxe5 {[%clk 0:02:49.3]} 17... Re8 {[%clk 0:02:53.8]} 18. f4 {[%clk 0:02:49.1]}
18... h6 {[%clk 0:02:50.1]} 19. Bh4 {[%clk 0:02:45.8]} 19... g5 {[%clk
0:02:48.3]} 20. Bg3 {[%clk 0:02:40.9]} 20... Nc5 {[%clk 0:02:48.3]} 21. Bf3
{[%clk 0:01:29.1]} 21... gxf4 {[%clk 0:02:48.7]} 22. Bxf4 {[%clk 0:01:26.3]}
22... Rxe5 {[%clk 0:02:49.8]} 23. Bxe5 {[%clk 0:01:24.6]} 23... Nd3+ {[%clk
0:02:50.7]} 24. Ke2 {[%clk 0:01:26.5]} 24... Nxe5 {[%clk 0:02:52.6]} 25. Rad1
{[%clk 0:01:27.3]} 25... Be6 {[%clk 0:02:49.4]} 26. b3 {[%clk 0:01:28]} 26... c6
{[%clk 0:02:50.7]} 27. Rd2 {[%clk 0:01:24]} 27... Nxf3 {[%clk 0:02:33.2]} 28.
Kxf3 {[%clk 0:01:16]} 28... Nd7 {[%clk 0:02:33]} 29. Ne2 {[%clk 0:01:12.8]}
29... Ne5+ {[%clk 0:02:32.9]} 30. Kf2 {[%clk 0:01:13.1]} 30... c5 {[%clk
0:02:29.4]} 31. Rhd1 {[%clk 0:01:02.6]} 31... Nc6 {[%clk 0:02:29.5]} 32. Nf4
{[%clk 0:00:54.6]} 32... Bd4+ {[%clk 0:02:30.3]} 33. Ke2 {[%clk 0:00:51.2]}
33... a5 {[%clk 0:02:26.3]} 34. Rd3 {[%clk 0:00:42.2]} 34... Re8 {[%clk
0:02:24]} 35. Rg3+ {[%clk 0:00:41]} 35... Kh7 {[%clk 0:02:22.7]} 36. Kd3 {[%clk
0:00:40.2]} 36... Nb4+ {[%clk 0:02:13.9]} 37. Ke2 {[%clk 0:00:37.1]} 37... Nxa2
{[%clk 0:02:01.5]} 38. Rf1 {[%clk 0:00:25]} 38... Re7 {[%clk 0:01:57.6]} 39.
Nxe6 {[%clk 0:00:15.7]} 39... fxe6 {[%clk 0:01:58.7]} 40. Rf8 {[%clk 0:00:16.3]}
40... Be5 {[%clk 0:01:56.6]} 41. Rgf3 {[%clk 0:00:16]} 41... Kg7 {[%clk
0:01:55.9]} 42. Rd8 {[%clk 0:00:13.2]} 42... Bf6 {[%clk 0:01:43.6]} 43. Rg3+
{[%clk 0:00:13.3]} 43... Kh7 {[%clk 0:01:44]} 44. Rf8 {[%clk 0:00:13.1]} 44...
Be5 {[%clk 0:01:44.2]} 45. Rgf3 {[%clk 0:00:12.7]} 45... Kg7 {[%clk 0:01:43.9]}
46. Rd8 {[%clk 0:00:12.9]} 46... Nb4 {[%clk 0:01:43.2]} 47. h4 {[%clk
0:00:08.5]} 47... Nc6 {[%clk 0:01:43.5]} 48. Rff8 {[%clk 0:00:03.1]} 48... Nxd8
{[%clk 0:01:43.6]} 49. Rxd8 {[%clk 0:00:05]} 49... h5 {[%clk 0:01:43.6]} 50. Rc8
{[%clk 0:00:03.6]} 50... Rc7 {[%clk 0:01:43.2]} 51. Ra8 {[%clk 0:00:05.5]} 51...
b6 {[%clk 0:01:42.5]} 52. Rb8 {[%clk 0:00:06.7]} 52... Rc6 {[%clk 0:01:40.5]}
53. Rb7+ {[%clk 0:00:06.5]} 53... Kg6 {[%clk 0:01:41.7]} 54. Kf3 {[%clk
0:00:07.6]} 54... Bf6 {[%clk 0:01:39.6]} 55. g4 {[%clk 0:00:08]} 55... Bxh4
{[%clk 0:01:37.3]} 56. gxh5+ {[%clk 0:00:08.5]} 56... Kxh5 {[%clk 0:01:38.7]}
57. Rh7+ {[%clk 0:00:08.9]} 57... Kg5 {[%clk 0:01:38.4]} 58. Rg7+ {[%clk
0:00:09.6]} 58... Kf6 {[%clk 0:01:39]} 59. Rh7 {[%clk 0:00:10.1]} 59... Be1
{[%clk 0:01:38.4]} 60. Kf4 {[%clk 0:00:08.8]} 60... Bd2+ {[%clk 0:01:39.1]} 61.
Kf3 {[%clk 0:00:09.6]} 61... Ke5 {[%clk 0:01:40.5]} 62. Rd7 {[%clk 0:00:08.3]}
62... Rd6 {[%clk 0:01:40.2]} 63. Rh7 {[%clk 0:00:08.2]} 63... Rd3+ {[%clk
0:01:39.9]} 64. Ke2 {[%clk 0:00:08.4]} 64... Rd4 {[%clk 0:01:40.9]} 65. Rh5+
{[%clk 0:00:09.2]} 65... Kxe4 {[%clk 0:01:40.5]} 66. Rh4+ {[%clk 0:00:09.5]}
66... Bf4 {[%clk 0:01:41.5]} 67. Rh3 {[%clk 0:00:09.7]} 67... Rd2+ {[%clk
0:01:41.8]} 68. Ke1 {[%clk 0:00:10.7]} 68... Rd3 {[%clk 0:01:42.8]} 69. Rh7
{[%clk 0:00:09.5]} 69... Rxb3 {[%clk 0:01:42.8]} 70. Re7 {[%clk 0:00:11.4]}
70... e5 {[%clk 0:01:43.2]} 71. Rd7 {[%clk 0:00:13.3]} 71... Kf3 {[%clk
0:01:42.8]} 72. Rb7 {[%clk 0:00:15.2]} 72... Rb1# {[%clk 0:01:43.1]} 0-1

[Event "*** Titled Tuesday 3|2 Blitz"]
[Site "Chess.com"]
[Date "2016.02.02"]
[Round "4"]
[White "DanielNaroditsky"]
[Black "gmcorrales"]
[Result "1-0"]
[WhiteElo "2563"]
[BlackElo "2456"]
[TimeControl "180+2"]
[EndTime "17:47:46 PST"]
[Termination "DanielNaroditsky won on time"]

1. b3 {[%clk 0:03:01.6]} 1... d5 {[%clk 0:03:00.4]} 2. Bb2 {[%clk 0:03:00.3]}
2... Nf6 {[%clk 0:02:58.6]} 3. e3 {[%clk 0:03:00.3]} 3... e6 {[%clk 0:02:58.1]}
4. Nf3 {[%clk 0:03:00.5]} 4... Be7 {[%clk 0:02:59]} 5. c4 {[%clk 0:03:01.1]}
5... O-O {[%clk 0:03:00.3]} 6. Be2 {[%clk 0:03:01.3]} 6... c5 {[%clk 0:03:01.9]}
7. O-O {[%clk 0:03:02.4]} 7... Nc6 {[%clk 0:03:02.4]} 8. d4 {[%clk 0:03:04]}
8... cxd4 {[%clk 0:03:01.3]} 9. exd4 {[%clk 0:03:04.6]} 9... b6 {[%clk
0:03:00.9]} 10. Nc3 {[%clk 0:03:05.4]} 10... Bb7 {[%clk 0:03:01.1]} 11. Rc1
{[%clk 0:02:55.8]} 11... Rc8 {[%clk 0:03:02.1]} 12. Re1 {[%clk 0:02:53.8]} 12...
Bb4 {[%clk 0:02:55.6]} 13. a3 {[%clk 0:02:52.2]} 13... Bd6 {[%clk 0:02:50.1]}
14. cxd5 {[%clk 0:02:49.2]} 14... exd5 {[%clk 0:02:50.5]} 15. Bd3 {[%clk
0:02:48.1]} 15... a6 {[%clk 0:02:48.5]} 16. Bb1 {[%clk 0:02:26]} 16... Rc7
{[%clk 0:02:46.6]} 17. Qd3 {[%clk 0:02:22.9]} 17... g6 {[%clk 0:02:46.9]} 18.
Ne5 {[%clk 0:02:23]} 18... Re8 {[%clk 0:02:44.7]} 19. Na4 {[%clk 0:02:13.3]}
19... Nxe5 {[%clk 0:02:40.4]} 20. dxe5 {[%clk 0:02:06.8]} 20... Rxc1 {[%clk
0:02:41]} 21. Rxc1 {[%clk 0:02:03.2]} 21... Bxe5 {[%clk 0:02:41.6]} 22. Bxe5
{[%clk 0:02:04.4]} 22... Rxe5 {[%clk 0:02:43.5]} 23. Qd4 {[%clk 0:02:05.5]}
23... Re6 {[%clk 0:02:44.6]} 24. Bd3 {[%clk 0:02:01]} 24... h5 {[%clk
0:02:38.2]} 25. h3 {[%clk 0:01:58.1]} 25... Qd6 {[%clk 0:02:30.3]} 26. b4 {[%clk
0:01:47]} 26... Ne4 {[%clk 0:02:30.9]} 27. Rd1 {[%clk 0:01:26]} 27... b5 {[%clk
0:02:20.3]} 28. Bxe4 {[%clk 0:01:16]} 28... bxa4 {[%clk 0:02:21.5]} 29. Bf3
{[%clk 0:01:13.5]} 29... Bc6 {[%clk 0:02:06.4]} 30. g3 {[%clk 0:01:11.1]} 30...
Qe5 {[%clk 0:01:37.2]} 31. Bxd5 {[%clk 0:00:58.4]} 31... Bxd5 {[%clk 0:01:07.8]}
32. Qxd5 {[%clk 0:00:57.4]} 32... Qxd5 {[%clk 0:01:05.8]} 33. Rxd5 {[%clk
0:00:56.9]} 33... Re1+ {[%clk 0:01:05.6]} 34. Kg2 {[%clk 0:00:58.3]} 34... Ra1
{[%clk 0:01:06.6]} 35. Rd3 {[%clk 0:00:59.3]} 35... Rb1 {[%clk 0:01:04.7]} 36.
Kf3 {[%clk 0:00:59.9]} 36... Kg7 {[%clk 0:01:05.5]} 37. Ke4 {[%clk 0:01:00.3]}
37... Rb2 {[%clk 0:01:02.6]} 38. Rf3 {[%clk 0:00:47.3]} 38... Rd2 {[%clk
0:00:58.4]} 39. g4 {[%clk 0:00:45.1]} 39... h4 {[%clk 0:00:58.3]} 40. Ke3 {[%clk
0:00:41.8]} 40... Rd1 {[%clk 0:00:55.6]} 41. Ke2 {[%clk 0:00:42.6]} 41... Rb1
{[%clk 0:00:54.7]} 42. Kd3 {[%clk 0:00:37.5]} 42... Rc1 {[%clk 0:00:37.1]} 43.
Kd4 {[%clk 0:00:37.5]} 43... Kf8 {[%clk 0:00:34.1]} 44. Rc3 {[%clk 0:00:38.2]}
44... Rb1 {[%clk 0:00:27.4]} 45. Kc5 {[%clk 0:00:37]} 45... Rb3 {[%clk
0:00:28.1]} 46. Re3 {[%clk 0:00:35.6]} 46... f5 {[%clk 0:00:21.5]} 47. gxf5
{[%clk 0:00:37.5]} 47... g5 {[%clk 0:00:22.1]} 48. Kd4 {[%clk 0:00:25.4]} 48...
Kf7 {[%clk 0:00:20]} 49. f3 {[%clk 0:00:22.3]} 49... Rb1 {[%clk 0:00:14.3]} 50.
Ke5 {[%clk 0:00:23.6]} 50... Rh1 {[%clk 0:00:12.2]} 51. f4 {[%clk 0:00:24.3]}
51... gxf4 {[%clk 0:00:08.5]} 52. Kxf4 {[%clk 0:00:25.6]} 52... Rb1 {[%clk
0:00:10.3]} 53. Kg4 {[%clk 0:00:16.4]} 53... Rb3 {[%clk 0:00:10.9]} 54. Re6
{[%clk 0:00:18]} 54... Rxa3 {[%clk 0:00:11.4]} 55. Rxa6 {[%clk 0:00:19.4]} 55...
Ra1 {[%clk 0:00:08.6]} 56. Kxh4 {[%clk 0:00:20.1]} 56... a3 {[%clk 0:00:10.1]}
57. Kg5 {[%clk 0:00:18.5]} 57... Rg1+ {[%clk 0:00:07.8]} 58. Kf4 {[%clk
0:00:18]} 58... Rf1+ {[%clk 0:00:07.2]} 59. Ke5 {[%clk 0:00:19]} 59... Re1+
{[%clk 0:00:07.7]} 60. Kd5 {[%clk 0:00:20.5]} 60... Re3 {[%clk 0:00:03.3]} 61.
h4 {[%clk 0:00:16.9]} 61... Rh3 {[%clk 0:00:03.7]} 62. Ke5 {[%clk 0:00:16.7]}
62... Rxh4 {[%clk 0:00:03.4]} 63. Ra7+ {[%clk 0:00:15]} 63... Kg8 {[%clk
0:00:04.6]} 64. b5 {[%clk 0:00:10.2]} 64... Rb4 {[%clk 0:00:05.3]} 65. Kf6
{[%clk 0:00:01.9]} 65... Rxb5 {[%clk 0:00:06]} 66. Kg6 {[%clk 0:00:03.4]} 66...
Kf8 {[%clk 0:00:02.7]} 67. f6 {[%clk 0:00:03.9]} 67... Rb8 {[%clk 0:00:02.4]}
68. Rxa3 {[%clk 0:00:05.4]} 68... Rc8 {[%clk 0:00:03.8]} 69. Rh3 {[%clk
0:00:05.8]} 69... Kg8 {[%clk 0:00:05.7]} 70. f7+ {[%clk 0:00:06.6]} 70... Kf8
{[%clk 0:00:07.6]} 71. Rh8+ {[%clk 0:00:07.9]} 1-0

[Event "*** Titled Tuesday 3|2 Blitz"]
[Site "Chess.com"]
[Date "2016.02.02"]
[Round "5"]
[White "chessking2151"]
[Black "Konavets"]
[Result "0-1"]
[WhiteElo "2247"]
[BlackElo "2518"]
[TimeControl "180+2"]
[EndTime "17:52:54 PST"]
[Termination "Konavets won by resignation"]

1. e4 {[%clk 0:03:01.9]} 1... c6 {[%clk 0:02:59]} 2. d4 {[%clk 0:03:02.7]} 2...
Na6 {[%clk 0:03:00.1]} 3. c4 {[%clk 0:03:00]} 3... d5 {[%clk 0:03:01.1]} 4. exd5
{[%clk 0:02:50.6]} 4... cxd5 {[%clk 0:03:02.3]} 5. cxd5 {[%clk 0:02:52.3]} 5...
Nf6 {[%clk 0:03:02.4]} 6. Nf3 {[%clk 0:02:51.3]} 6... Nxd5 {[%clk 0:03:03.3]} 7.
Ne5 {[%clk 0:02:51.9]} 7... Nac7 {[%clk 0:02:58.8]} 8. Be2 {[%clk 0:02:48.8]}
8... g6 {[%clk 0:02:59.5]} 9. h4 {[%clk 0:02:45.4]} 9... Bg7 {[%clk 0:03:00.7]}
10. h5 {[%clk 0:02:46.6]} 10... O-O {[%clk 0:03:02]} 11. hxg6 {[%clk 0:02:43.8]}
11... hxg6 {[%clk 0:03:03.2]} 12. a3 {[%clk 0:02:31.5]} 12... Bf5 {[%clk
0:02:46.9]} 13. g4 {[%clk 0:02:19.8]} 13... Bxb1 {[%clk 0:02:46.2]} 14. Rxb1
{[%clk 0:02:20.8]} 14... Ne6 {[%clk 0:02:47.5]} 15. Qd3 {[%clk 0:02:01.4]} 15...
Ndf4 {[%clk 0:02:48.7]} 16. Qg3 {[%clk 0:01:42.9]} 16... Qxd4 {[%clk 0:02:43.4]}
17. Qh2 {[%clk 0:00:56.8]} 17... Rfd8 {[%clk 0:02:43.5]} 18. Qh7+ {[%clk
0:00:37.4]} 18... Kf8 {[%clk 0:02:42.5]} 0-1

[Event "*** Titled Tuesday 3|2 Blitz"]
[Site "Chess.com"]
[Date "2016.02.02"]
[Round "5"]
[White "kharposh"]
[Black "Kanthecarowin"]
[Result "0-1"]
[WhiteElo "2047"]
[BlackElo "2165"]
[TimeControl "180+2"]
[EndTime "17:54:17 PST"]
[Termination "Kanthecarowin won by resignation"]

1. e4 {[%clk 0:03:01.9]} 1... c6 {[%clk 0:02:57.4]} 2. d4 {[%clk 0:03:00.4]}
2... d5 {[%clk 0:02:59.3]} 3. Nc3 {[%clk 0:03:00.7]} 3... dxe4 {[%clk
0:02:59.4]} 4. Nxe4 {[%clk 0:03:02.6]} 4... Bf5 {[%clk 0:03:01]} 5. Ng3 {[%clk
0:03:03]} 5... Bg6 {[%clk 0:02:49.6]} 6. Nf3 {[%clk 0:03:03.8]} 6... Nd7 {[%clk
0:02:40.6]} 7. Bc4 {[%clk 0:03:02.1]} 7... e6 {[%clk 0:02:32.7]} 8. O-O {[%clk
0:03:00.4]} 8... Ngf6 {[%clk 0:01:59.8]} 9. Qe2 {[%clk 0:02:54.7]} 9... Be7
{[%clk 0:02:00.7]} 10. Ne5 {[%clk 0:02:48.6]} 10... Nxe5 {[%clk 0:02:01.3]} 11.
dxe5 {[%clk 0:02:47.7]} 11... Nd5 {[%clk 0:02:02.3]} 12. f4 {[%clk 0:02:33.3]}
12... O-O {[%clk 0:01:52.6]} 13. f5 {[%clk 0:02:18.8]} 13... exf5 {[%clk
0:01:28.5]} 14. Nxf5 {[%clk 0:02:20.7]} 14... Bg5 {[%clk 0:01:29.4]} 15. e6
{[%clk 0:02:11.8]} 15... fxe6 {[%clk 0:01:14.9]} 16. Qxe6+ {[%clk 0:02:08.7]}
16... Kh8 {[%clk 0:01:15.9]} 17. Bxd5 {[%clk 0:02:03.1]} 17... cxd5 {[%clk
0:01:15]} 18. Bxg5 {[%clk 0:01:43]} 18... Qxg5 {[%clk 0:01:16.9]} 19. Nd4 {[%clk
0:01:42.8]} 19... Rfe8 {[%clk 0:01:12.4]} 20. Qd7 {[%clk 0:01:28.3]} 20... Qe3+
{[%clk 0:01:10.4]} 21. Kh1 {[%clk 0:01:25.1]} 21... Qxd4 {[%clk 0:01:11]} 22.
Rad1 {[%clk 0:01:22.4]} 22... Qc4 {[%clk 0:01:08.9]} 23. Rxd5 {[%clk 0:01:19.9]}
0-1

[Event "*** Titled Tuesday 3|2 Blitz"]
[Site "Chess.com"]
[Date "2016.02.02"]
[Round "5"]
[White "Dr-Bassem"]
[Black "AndreyOstrovskiy"]
[Result "1-0"]
[WhiteElo "2482"]
[BlackElo "2452"]
[TimeControl "180+2"]
[EndTime "17:54:55 PST"]
[Termination "Dr-Bassem won by resignation"]

1. e4 {[%clk 0:03:01.9]} 1... e5 {[%clk 0:03:00.2]} 2. Nf3 {[%clk 0:03:03]} 2...
Nc6 {[%clk 0:03:01.3]} 3. Bb5 {[%clk 0:03:04.6]} 3... a6 {[%clk 0:03:02.7]} 4.
Ba4 {[%clk 0:03:05.9]} 4... Nf6 {[%clk 0:03:03.9]} 5. Qe2 {[%clk 0:03:07.3]}
5... Be7 {[%clk 0:02:59.1]} 6. O-O {[%clk 0:03:07.6]} 6... b5 {[%clk 0:02:59.1]}
7. Bb3 {[%clk 0:03:08.9]} 7... d6 {[%clk 0:03:00.3]} 8. a4 {[%clk 0:03:08.3]}
8... b4 {[%clk 0:02:57.7]} 9. Qc4 {[%clk 0:03:03.8]} 9... O-O {[%clk 0:02:41.2]}
10. Qxc6 {[%clk 0:03:03.4]} 10... Bg4 {[%clk 0:02:41.8]} 11. Nh4 {[%clk
0:02:46.8]} 11... Nh5 {[%clk 0:02:30.9]} 12. Nf5 {[%clk 0:02:45.2]} 12... Nf4
{[%clk 0:02:31.5]} 13. d3 {[%clk 0:02:39.2]} 13... Ne2+ {[%clk 0:02:24]} 14. Kh1
{[%clk 0:02:39.1]} 14... Bg5 {[%clk 0:02:24.7]} 15. Bxg5 {[%clk 0:02:20.7]}
15... Qxg5 {[%clk 0:02:23.8]} 16. Qxc7 {[%clk 0:02:11.7]} 16... Bf3 {[%clk
0:01:47.4]} 17. gxf3 {[%clk 0:02:10.2]} 17... Qf4 {[%clk 0:01:37.7]} 18. Kg2
{[%clk 0:01:34.9]} 18... g6 {[%clk 0:01:08.6]} 19. Ng3 {[%clk 0:01:31.6]} 19...
Nd4 {[%clk 0:01:05.7]} 20. Nd2 {[%clk 0:01:23.4]} 20... Qxd2 {[%clk 0:01:04.8]}
21. Rae1 {[%clk 0:01:23.6]} 21... h5 {[%clk 0:00:55.4]} 22. Qxd6 {[%clk
0:01:23.6]} 22... Qg5 {[%clk 0:00:43.6]} 23. h4 {[%clk 0:01:22.6]} 1-0

[Event "*** Titled Tuesday 3|2 Blitz"]
[Site "Chess.com"]
[Date "2016.02.02"]
[Round "5"]
[White "davidarenas1224"]
[Black "GM_Huschenbeth"]
[Result "0-1"]
[WhiteElo "2098"]
[BlackElo "2273"]
[TimeControl "180+2"]
[EndTime "17:55:03 PST"]
[Termination "GM_Huschenbeth won by resignation"]

1. e4 {[%clk 0:03:01.9]} 1... e6 {[%clk 0:03:00.7]} 2. d4 {[%clk 0:02:54.8]}
2... d5 {[%clk 0:03:02.6]} 3. Nc3 {[%clk 0:02:54.1]} 3... Bb4 {[%clk 0:03:03.8]}
4. e5 {[%clk 0:02:54.1]} 4... c5 {[%clk 0:03:05.4]} 5. a3 {[%clk 0:02:53.9]}
5... Bxc3+ {[%clk 0:03:07]} 6. bxc3 {[%clk 0:02:55.7]} 6... Ne7 {[%clk
0:03:08.8]} 7. Qg4 {[%clk 0:02:56.2]} 7... O-O {[%clk 0:03:09.5]} 8. Bd3 {[%clk
0:02:55.2]} 8... Nbc6 {[%clk 0:03:10.8]} 9. Qh5 {[%clk 0:02:53.7]} 9... Ng6
{[%clk 0:03:11.8]} 10. Nf3 {[%clk 0:02:37.9]} 10... Qc7 {[%clk 0:03:12.8]} 11.
O-O {[%clk 0:02:21.7]} 11... c4 {[%clk 0:03:12.9]} 12. Bxg6 {[%clk 0:02:19.8]}
12... fxg6 {[%clk 0:03:14.8]} 13. Qg4 {[%clk 0:02:17.5]} 13... Qf7 {[%clk
0:02:52.3]} 14. h4 {[%clk 0:02:12.7]} 14... b5 {[%clk 0:02:47]} 15. a4 {[%clk
0:01:58]} 15... b4 {[%clk 0:02:41.6]} 16. cxb4 {[%clk 0:01:56.8]} 16... Nxb4
{[%clk 0:02:43.5]} 17. Ba3 {[%clk 0:01:37.2]} 17... Nxc2 {[%clk 0:02:35.4]} 18.
Bxf8 {[%clk 0:01:27.5]} 18... Nxa1 {[%clk 0:02:36.4]} 19. Bxg7 {[%clk
0:01:15.6]} 19... Kxg7 {[%clk 0:02:34]} 20. Rxa1 {[%clk 0:01:14.9]} 20... Qf5
{[%clk 0:02:31.6]} 21. Qxf5 {[%clk 0:01:07.8]} 21... gxf5 {[%clk 0:02:30.8]} 22.
Rb1 {[%clk 0:01:09.7]} 22... Kf8 {[%clk 0:02:23.8]} 23. Kf1 {[%clk 0:01:08.6]}
23... a5 {[%clk 0:02:22.1]} 24. Ke2 {[%clk 0:01:03.5]} 24... Bd7 {[%clk
0:02:17.2]} 25. Kd2 {[%clk 0:00:59.6]} 25... h6 {[%clk 0:02:07.2]} 26. Rb6
{[%clk 0:00:55.7]} 26... Ke7 {[%clk 0:02:07]} 27. Rb7 {[%clk 0:00:53.3]} 27...
Kd8 {[%clk 0:01:51.4]} 28. Kc3 {[%clk 0:00:44.4]} 28... Kc8 {[%clk 0:01:52.5]}
29. Rb6 {[%clk 0:00:38.2]} 29... Kc7 {[%clk 0:01:51]} 30. Rd6 {[%clk 0:00:32.1]}
30... Rg8 {[%clk 0:01:43.4]} 31. g3 {[%clk 0:00:31.3]} 31... Rb8 {[%clk
0:01:44.4]} 32. Ra6 {[%clk 0:00:29.9]} 32... Rb3+ {[%clk 0:01:45]} 0-1

[Event "*** Titled Tuesday 3|2 Blitz"]
[Site "Chess.com"]
[Date "2016.02.02"]
[Round "5"]
[White "TheMagician"]
[Black "Zazuliak"]
[Result "0-1"]
[WhiteElo "2124"]
[BlackElo "2314"]
[TimeControl "180+2"]
[EndTime "17:55:21 PST"]
[Termination "Zazuliak won by resignation"]

1. e4 {[%clk 0:03:01.9]} 1... c5 {[%clk 0:03:00.3]} 2. Nf3 {[%clk 0:03:03]} 2...
g6 {[%clk 0:03:01.1]} 3. d4 {[%clk 0:03:03.2]} 3... cxd4 {[%clk 0:03:02.4]} 4.
Nxd4 {[%clk 0:03:04.6]} 4... Bg7 {[%clk 0:03:03.3]} 5. Nc3 {[%clk 0:03:04.9]}
5... Nc6 {[%clk 0:03:04.7]} 6. Be3 {[%clk 0:03:05.1]} 6... Nf6 {[%clk
0:03:05.9]} 7. Be2 {[%clk 0:03:04.1]} 7... O-O {[%clk 0:03:06.4]} 8. O-O {[%clk
0:03:03.4]} 8... d6 {[%clk 0:03:07.3]} 9. Qd2 {[%clk 0:03:03.7]} 9... Ng4 {[%clk
0:03:07]} 10. Bxg4 {[%clk 0:03:04.2]} 10... Bxg4 {[%clk 0:03:08.3]} 11. f4
{[%clk 0:03:04]} 11... Bd7 {[%clk 0:03:06.4]} 12. Nxc6 {[%clk 0:02:50.6]} 12...
Bxc6 {[%clk 0:03:06.9]} 13. Rad1 {[%clk 0:02:38.8]} 13... Bxc3 {[%clk
0:03:04.8]} 14. Qxc3 {[%clk 0:02:39.6]} 14... Bxe4 {[%clk 0:03:05.5]} 15. f5
{[%clk 0:02:40]} 15... Re8 {[%clk 0:02:58.4]} 16. fxg6 {[%clk 0:02:36.5]} 16...
Bxg6 {[%clk 0:02:56.5]} 17. Rd2 {[%clk 0:02:09.9]} 17... Rc8 {[%clk 0:02:54.1]}
18. Qb3 {[%clk 0:02:10.7]} 18... b6 {[%clk 0:02:50.3]} 19. c3 {[%clk 0:02:03.1]}
19... Qc7 {[%clk 0:02:42.7]} 20. Re1 {[%clk 0:01:47.4]} 20... Qc4 {[%clk
0:02:30.4]} 21. Qxc4 {[%clk 0:01:47.9]} 21... Rxc4 {[%clk 0:02:30.9]} 22. Bg5
{[%clk 0:01:49.5]} 22... f6 {[%clk 0:02:30.4]} 23. Bh6 {[%clk 0:01:44]} 23...
Kf7 {[%clk 0:02:30.6]} 24. h3 {[%clk 0:01:40.5]} 24... Re4 {[%clk 0:02:26.7]}
25. Rf1 {[%clk 0:01:38.2]} 25... Rc8 {[%clk 0:02:23.9]} 26. Bf4 {[%clk
0:01:31.9]} 26... Rcc4 {[%clk 0:02:17.7]} 27. Bxd6 {[%clk 0:01:21.4]} 27... exd6
{[%clk 0:02:17.4]} 28. Rxd6 {[%clk 0:01:22.3]} 28... f5 {[%clk 0:02:04]} 29.
Rd7+ {[%clk 0:01:21.9]} 29... Re7 {[%clk 0:02:04.3]} 30. Rd6 {[%clk 0:01:17.6]}
30... Rce4 {[%clk 0:02:02.7]} 31. g4 {[%clk 0:01:16.1]} 31... Re1 {[%clk
0:02:00.6]} 32. gxf5 {[%clk 0:01:14.2]} 32... Rxf1+ {[%clk 0:02:00.7]} 33. Kxf1
{[%clk 0:01:15.2]} 33... Bxf5 {[%clk 0:02:02.1]} 34. h4 {[%clk 0:01:10.1]} 34...
Rd7 {[%clk 0:01:59.3]} 35. Rc6 {[%clk 0:01:06.3]} 35... Be6 {[%clk 0:01:56.7]}
36. h5 {[%clk 0:00:57.7]} 36... Bxa2 {[%clk 0:01:55.1]} 37. Ke2 {[%clk
0:00:52.1]} 37... Bd5 {[%clk 0:01:54.4]} 38. Rh6 {[%clk 0:00:48.8]} 38... Kg7
{[%clk 0:01:53.8]} 39. Re6 {[%clk 0:00:50.4]} 39... Bxe6 {[%clk 0:01:54.4]} 0-1

[Event "*** Titled Tuesday 3|2 Blitz"]
[Site "Chess.com"]
[Date "2016.02.02"]
[Round "5"]
[White "ethylalcohol"]
[Black "ZEN-22"]
[Result "0-1"]
[WhiteElo "1736"]
[BlackElo "2365"]
[TimeControl "180+2"]
[EndTime "17:55:34 PST"]
[Termination "ZEN-22 won on time"]

1. e4 {[%clk 0:03:01.7]} 1... d5 {[%clk 0:03:00.4]} 2. exd5 {[%clk 0:03:02]}
2... c6 {[%clk 0:03:01.9]} 3. Nc3 {[%clk 0:03:01.7]} 3... cxd5 {[%clk
0:03:02.8]} 4. d4 {[%clk 0:03:01.8]} 4... Nc6 {[%clk 0:03:03.8]} 5. Nf3 {[%clk
0:03:02.2]} 5... Bg4 {[%clk 0:03:04.3]} 6. Be2 {[%clk 0:03:03.2]} 6... e6 {[%clk
0:03:05.3]} 7. h3 {[%clk 0:03:02.9]} 7... Bxf3 {[%clk 0:03:05.9]} 8. Bxf3 {[%clk
0:03:03.4]} 8... Bb4 {[%clk 0:03:02.7]} 9. O-O {[%clk 0:03:01.7]} 9... Nge7
{[%clk 0:03:02.2]} 10. Ne2 {[%clk 0:02:57.3]} 10... Rc8 {[%clk 0:03:00.8]} 11.
c3 {[%clk 0:02:57.8]} 11... Bd6 {[%clk 0:03:02.2]} 12. Bf4 {[%clk 0:02:45.7]}
12... O-O {[%clk 0:03:01.2]} 13. Re1 {[%clk 0:02:33.4]} 13... Ng6 {[%clk
0:03:01.5]} 14. Bxd6 {[%clk 0:02:17.3]} 14... Qxd6 {[%clk 0:03:01.2]} 15. g3
{[%clk 0:01:59.4]} 15... b5 {[%clk 0:03:02.2]} 16. Qd3 {[%clk 0:01:52.1]} 16...
b4 {[%clk 0:03:02.5]} 17. h4 {[%clk 0:01:50.7]} 17... bxc3 {[%clk 0:03:03.1]}
18. bxc3 {[%clk 0:01:52.6]} 18... h6 {[%clk 0:03:03.4]} 19. h5 {[%clk
0:01:51.9]} 19... Nge7 {[%clk 0:03:03.9]} 20. Nf4 {[%clk 0:01:50.2]} 20... Rfd8
{[%clk 0:02:51.7]} 21. Rad1 {[%clk 0:01:36.2]} 21... Rc7 {[%clk 0:02:51.7]} 22.
Kg2 {[%clk 0:01:36.1]} 22... e5 {[%clk 0:02:48.7]} 23. dxe5 {[%clk 0:01:31.8]}
23... Nxe5 {[%clk 0:02:50.2]} 24. Qe3 {[%clk 0:01:25.7]} 24... Nxf3 {[%clk
0:02:47.1]} 25. Qxf3 {[%clk 0:01:26.5]} 25... Qc5 {[%clk 0:02:44.6]} 26. Rd3
{[%clk 0:01:19.7]} 26... Rcd7 {[%clk 0:02:42.9]} 27. Red1 {[%clk 0:01:19.6]}
27... Nc6 {[%clk 0:02:37.6]} 28. Rxd5 {[%clk 0:01:02.9]} 28... Rxd5 {[%clk
0:02:37]} 29. Rxd5 {[%clk 0:01:03.2]} 29... Rxd5 {[%clk 0:02:37.5]} 30. Nxd5
{[%clk 0:00:44.3]} 30... Ne5 {[%clk 0:02:37.9]} 31. Qe4 {[%clk 0:00:43.9]} 31...
f6 {[%clk 0:02:39]} 32. f4 {[%clk 0:00:38.3]} 32... Nc4 {[%clk 0:02:32.8]} 33.
Qe8+ {[%clk 0:00:36.7]} 33... Kh7 {[%clk 0:02:32.4]} 34. Ne7 {[%clk 0:00:35.3]}
34... Ne3+ {[%clk 0:02:23.2]} 35. Kf3 {[%clk 0:00:23.1]} 35... Qc4 {[%clk
0:02:24.1]} 36. Qg6+ {[%clk 0:00:18.8]} 36... Kh8 {[%clk 0:02:25]} 37. Qe8+
{[%clk 0:00:18.7]} 37... Kh7 {[%clk 0:02:26.1]} 38. Ng6 {[%clk 0:00:12]} 38...
Qf1+ {[%clk 0:02:15.8]} 39. Ke4 {[%clk 0:00:04.2]} 39... Qh1+ {[%clk 0:02:16.4]}
0-1